[Event "Titled Tuesday Blitz June 6 Early 2023"]
[White "le-castor-faineant"]
[Black "Barbot, Pierre"]
[BlackFideId "663727"]
[WhiteElo "2226"]
[BlackElo "2431"]
[Result "0-1"]
[Round "6"]
[TimeControl "180+2"]
[Date "2023.06.06"]
[WhiteClock "0:00:06"]
[BlackClock "0:00:06"]
[Board "162"]

1. e4 {[%clk 0:02:59]}  c6 {[%clk 0:02:58]} 2. d4 {[%clk 0:02:57]}  d5 {[%clk 0:02:58]} 3. Nc3 {[%clk 0:02:56]}  dxe4 {[%clk 0:02:57]} 4. Nxe4 {[%clk 0:02:56]}  Nf6 {[%clk 0:02:57]} 5. Nxf6+ {[%clk 0:02:55]}  exf6 {[%clk 0:02:58]} 6. Nf3 {[%clk 0:02:56]}  Bd6 {[%clk 0:02:58]} 7. Bd3 {[%clk 0:02:56]}  O-O {[%clk 0:02:55]} 8. O-O {[%clk 0:02:57]}  Nd7 {[%clk 0:02:53]} 9. c3 {[%clk 0:02:56]}  Re8 {[%clk 0:02:53]} 10. h3 {[%clk 0:02:53]}  Nf8 {[%clk 0:02:52]} 11. Nh4 {[%clk 0:02:49]}  g6 {[%clk 0:02:50]} 12. Qb3 {[%clk 0:02:43]}  Ne6 {[%clk 0:02:41]} 13. Bd2 {[%clk 0:02:29]}  f5 {[%clk 0:02:20]} 14. Nf3 {[%clk 0:02:27]}  Bf4 {[%clk 0:02:08]} 15. Rfe1 {[%clk 0:02:19]}  Bxd2 {[%clk 0:01:55]} 16. Nxd2 {[%clk 0:02:19]}  Nf4 {[%clk 0:01:43]} 17. Bf1 {[%clk 0:02:19]}  Be6 {[%clk 0:01:37]} 18. Qxb7 {[%clk 0:02:13]}  Qg5 {[%clk 0:01:18]} 19. Kh2 {[%clk 0:01:32]}  Bd5 {[%clk 0:01:08]} 20. Qd7 {[%clk 0:00:43]}  Rxe1 {[%clk 0:00:34]} 21. Rxe1 {[%clk 0:00:44]}  Nxg2 {[%clk 0:00:16]} 22. Re8+ {[%clk 0:00:44]}  Rxe8 {[%clk 0:00:17]} 23. Qxe8+ {[%clk 0:00:45]}  Kg7 {[%clk 0:00:17]} 24. Qe5+ {[%clk 0:00:42]}  Kh6 {[%clk 0:00:16]} 25. Qg3 {[%clk 0:00:31]}  Qxd2 {[%clk 0:00:14]} 26. Bxg2 {[%clk 0:00:32]}  Bxg2 {[%clk 0:00:14]} 27. Kxg2 {[%clk 0:00:33]}  Qxb2 {[%clk 0:00:15]} 28. Qf4+ {[%clk 0:00:33]}  Kg7 {[%clk 0:00:14]} 29. Qe5+ {[%clk 0:00:33]}  Kf8 {[%clk 0:00:11]} 30. Qh8+ {[%clk 0:00:31]}  Ke7 {[%clk 0:00:12]} 31. Qe5+ {[%clk 0:00:32]}  Kd7 {[%clk 0:00:11]} 32. d5 {[%clk 0:00:31]}  Qb5 {[%clk 0:00:09]} 33. dxc6+ {[%clk 0:00:30]}  Qxc6+ {[%clk 0:00:09]} 34. Kg1 {[%clk 0:00:28]}  Qd6 {[%clk 0:00:07]} 35. Qg7 {[%clk 0:00:25]}  Qd1+ {[%clk 0:00:06]} 36. Kg2 {[%clk 0:00:25]}  Qd5+ {[%clk 0:00:07]} 37. Kg1 {[%clk 0:00:25]}  Qxa2 {[%clk 0:00:06]} 38. Qxh7 {[%clk 0:00:24]}  Qe6 {[%clk 0:00:06]} 39. Qg7 {[%clk 0:00:24]}  a5 {[%clk 0:00:06]} 40. Qd4+ {[%clk 0:00:23]}  Qd6 {[%clk 0:00:05]} 41. Qa7+ {[%clk 0:00:21]}  Qc7 {[%clk 0:00:06]} 42. Qd4+ {[%clk 0:00:22]}  Kc8 {[%clk 0:00:06]} 43. Qh8+ {[%clk 0:00:16]}  Kb7 {[%clk 0:00:06]} 44. Qd4 {[%clk 0:00:17]}  Qc6 {[%clk 0:00:07]} 45. c4 {[%clk 0:00:13]}  a4 {[%clk 0:00:07]} 46. c5 {[%clk 0:00:13]}  a3 {[%clk 0:00:07]} 47. Qb4+ {[%clk 0:00:14]}  Kc7 {[%clk 0:00:07]} 48. Qxa3 {[%clk 0:00:15]}  Qb5 {[%clk 0:00:07]} 49. Qa7+ {[%clk 0:00:14]}  Kc6 {[%clk 0:00:08]} 50. Qxf7 {[%clk 0:00:14]}  Qb1+ {[%clk 0:00:07]} 51. Kh2 {[%clk 0:00:13]}  Kxc5 {[%clk 0:00:08]} 52. Qxg6 {[%clk 0:00:13]}  Qe4 {[%clk 0:00:08]} 53. Qg3 {[%clk 0:00:13]}  Kd4 {[%clk 0:00:08]} 54. Qg2 {[%clk 0:00:11]}  Qf4+ {[%clk 0:00:07]} 55. Qg3 {[%clk 0:00:10]}  Qe4 {[%clk 0:00:08]} 56. h4 {[%clk 0:00:09]}  f4 {[%clk 0:00:08]} 57. Qg7+ {[%clk 0:00:08]}  Kd3 {[%clk 0:00:08]} 58. Qd7+ {[%clk 0:00:08]}  Ke2 {[%clk 0:00:08]} 59. Qa7 {[%clk 0:00:06]}  Kf1 {[%clk 0:00:07]} 60. Qa1+ {[%clk 0:00:05]}  Ke2 {[%clk 0:00:06]} 61. Qb2+ {[%clk 0:00:05]}  Ke1 {[%clk 0:00:06]} 62. Kg1 {[%clk 0:00:03]}  Qg6+ {[%clk 0:00:05]} 63. Kh2 {[%clk 0:00:03]}  Qe4 {[%clk 0:00:04]} 64. Kg1 {[%clk 0:00:03]}  Qg6+ {[%clk 0:00:03]} 65. Kh2 {[%clk 0:00:04]}  Qg4 {[%clk 0:00:03]} 66. Qc1+ {[%clk 0:00:03]}  Kxf2 {[%clk 0:00:03]} 67. Qd2+ {[%clk 0:00:03]}  Qe2 {[%clk 0:00:03]} 68. Qd4+ {[%clk 0:00:04]}  Qe3 {[%clk 0:00:03]} 69. Qf6 {[%clk 0:00:02]}  Ke1 {[%clk 0:00:04]} 70. Qg5 {[%clk 0:00:01]}  Qf2+ {[%clk 0:00:03]} 71. Qg2 {[%clk 0:00:02]}  Qxg2+ {[%clk 0:00:03]} 72. Kxg2 {[%clk 0:00:03]}  Ke2 {[%clk 0:00:04]} 73. h5 {[%clk 0:00:03]}  f3+ {[%clk 0:00:05]} 74. Kg3 {[%clk 0:00:04]}  f2 {[%clk 0:00:05]} 75. h6 {[%clk 0:00:05]}  f1=Q {[%clk 0:00:06]} 76. h7 {[%clk 0:00:06]}  Qh1 {[%clk 0:00:06]} 77. Kg4 {[%clk 0:00:06]}  Qxh7 {[%clk 0:00:06]} 0-1


[Site "https://www.chess.com"]

[Event "Titled Tuesday Blitz June 6 Early 2023"]
[White "Goswami, Vedant"]
[Black "KSho99"]
[WhiteFideId "5003725"]
[WhiteElo "2011"]
[BlackElo "2202"]
[Result "1-0"]
[Round "6"]
[TimeControl "180+2"]
[Date "2023.06.06"]
[WhiteClock "0:01:09"]
[BlackClock "0:01:01"]
[Board "165"]

1. a3 {[%clk 0:03:00]}  e5 {[%clk 0:02:58]} 2. c4 {[%clk 0:02:59]}  Nf6 {[%clk 0:02:53]} 3. Nc3 {[%clk 0:02:59]}  c6 {[%clk 0:02:53]} 4. d4 {[%clk 0:02:57]}  exd4 {[%clk 0:02:51]} 5. Qxd4 {[%clk 0:02:57]}  d5 {[%clk 0:02:51]} 6. Nf3 {[%clk 0:02:52]}  Be6 {[%clk 0:02:48]} 7. Ng5 {[%clk 0:02:45]}  Bd6 {[%clk 0:02:28]} 8. Nxe6 {[%clk 0:02:43]}  fxe6 {[%clk 0:02:28]} 9. cxd5 {[%clk 0:02:40]}  cxd5 {[%clk 0:02:25]} 10. e4 {[%clk 0:02:36]}  Nc6 {[%clk 0:02:09]} 11. Bb5 {[%clk 0:02:34]}  O-O {[%clk 0:01:35]} 12. Bxc6 {[%clk 0:02:32]}  bxc6 {[%clk 0:01:35]} 13. exd5 {[%clk 0:01:36]}  cxd5 {[%clk 0:01:34]} 14. O-O {[%clk 0:01:35]}  Qe8 {[%clk 0:01:18]} 15. Bg5 {[%clk 0:01:19]}  Qh5 {[%clk 0:01:15]} 16. Qh4 {[%clk 0:01:18]}  Bxh2+ {[%clk 0:01:06]} 17. Kxh2 {[%clk 0:01:14]}  Ng4+ {[%clk 0:01:01]} 18. Kg1 {[%clk 0:01:09]} 1-0


[Site "https://www.chess.com"]

[Event "Titled Tuesday Blitz June 6 Early 2023"]
[White "Araujo Filho, Luiz Antonio Coel"]
[Black "Yanayt, Eugene"]
[WhiteFideId "2130661"]
[BlackFideId "2020165"]
[WhiteElo "2056"]
[BlackElo "2083"]
[Result "1-0"]
[Round "6"]
[TimeControl "180+2"]
[Date "2023.06.06"]
[WhiteClock "0:01:48"]
[BlackClock "0:02:12"]
[Board "170"]

1. d4 {[%clk 0:03:00]}  Nf6 {[%clk 0:02:59]} 2. Nf3 {[%clk 0:03:00]}  c5 {[%clk 0:02:58]} 3. e3 {[%clk 0:02:59]}  d5 {[%clk 0:02:57]} 4. c3 {[%clk 0:02:59]}  g6 {[%clk 0:02:56]} 5. Be2 {[%clk 0:02:59]}  Bg7 {[%clk 0:02:56]} 6. O-O {[%clk 0:02:59]}  O-O {[%clk 0:02:56]} 7. dxc5 {[%clk 0:03:00]}  a5 {[%clk 0:02:56]} 8. Nbd2 {[%clk 0:02:57]}  Na6 {[%clk 0:02:55]} 9. Bxa6 {[%clk 0:02:56]}  Rxa6 {[%clk 0:02:54]} 10. c4 {[%clk 0:02:55]}  dxc4 {[%clk 0:02:47]} 11. Nxc4 {[%clk 0:02:54]}  Qc7 {[%clk 0:02:48]} 12. b3 {[%clk 0:02:36]}  Ne4 {[%clk 0:02:30]} 13. Bb2 {[%clk 0:02:34]}  f6 {[%clk 0:02:26]} 14. Qd5+ {[%clk 0:02:30]}  Re6 {[%clk 0:02:25]} 15. Nd4 {[%clk 0:02:30]}  Qxc5 {[%clk 0:02:23]} 16. Qxc5 {[%clk 0:02:25]}  Nxc5 {[%clk 0:02:23]} 17. Nxe6 {[%clk 0:02:26]}  Bxe6 {[%clk 0:02:24]} 18. Nxa5 {[%clk 0:02:24]}  b5 {[%clk 0:02:23]} 19. Nc6 {[%clk 0:02:22]}  Kf7 {[%clk 0:02:22]} 20. Rfd1 {[%clk 0:02:15]}  Nd7 {[%clk 0:02:19]} 21. Nd4 {[%clk 0:02:12]}  Bd5 {[%clk 0:02:19]} 22. Nxb5 {[%clk 0:02:11]}  Bc6 {[%clk 0:02:19]} 23. Na7 {[%clk 0:02:07]}  Nb8 {[%clk 0:02:17]} 24. Nxc6 {[%clk 0:02:05]}  Nxc6 {[%clk 0:02:18]} 25. Rac1 {[%clk 0:02:05]}  Nb4 {[%clk 0:02:18]} 26. a3 {[%clk 0:02:05]}  Na6 {[%clk 0:02:17]} 27. b4 {[%clk 0:02:04]}  Rb8 {[%clk 0:02:14]} 28. Rc6 {[%clk 0:02:01]}  Ra8 {[%clk 0:02:13]} 29. b5 {[%clk 0:01:54]}  Nb8 {[%clk 0:02:13]} 30. Rc8 {[%clk 0:01:54]}  Ke6 {[%clk 0:02:12]} 31. b6 {[%clk 0:01:48]} 1-0


[Site "https://www.chess.com"]

[Event "Titled Tuesday Blitz June 6 Early 2023"]
[White "Floresvillar Gonzalez, Luis Migu"]
[Black "Vifleemskaia, Svetlana"]
[WhiteFideId "5100542"]
[BlackFideId "4129490"]
[WhiteElo "2040"]
[BlackElo "1930"]
[Result "1/2-1/2"]
[Round "6"]
[TimeControl "180+2"]
[Date "2023.06.06"]
[WhiteClock "0:00:20"]
[BlackClock "0:00:07"]
[Board "171"]

1. e4 {[%clk 0:03:00]}  e5 {[%clk 0:02:25]} 2. Nf3 {[%clk 0:02:59]}  Nc6 {[%clk 0:02:24]} 3. Bb5 {[%clk 0:02:55]}  a6 {[%clk 0:02:24]} 4. Ba4 {[%clk 0:02:54]}  Nf6 {[%clk 0:02:24]} 5. Qe2 {[%clk 0:02:54]}  Bc5 {[%clk 0:02:21]} 6. c3 {[%clk 0:02:53]}  b5 {[%clk 0:02:20]} 7. Bc2 {[%clk 0:02:51]}  O-O {[%clk 0:02:20]} 8. O-O {[%clk 0:02:50]}  Re8 {[%clk 0:02:18]} 9. d3 {[%clk 0:02:44]}  h6 {[%clk 0:02:15]} 10. Be3 {[%clk 0:02:42]}  Bxe3 {[%clk 0:02:14]} 11. Qxe3 {[%clk 0:02:41]}  d5 {[%clk 0:02:14]} 12. Nbd2 {[%clk 0:02:32]}  Ng4 {[%clk 0:01:58]} 13. Qe2 {[%clk 0:02:28]}  f5 {[%clk 0:01:56]} 14. exd5 {[%clk 0:02:15]}  Na5 {[%clk 0:01:55]} 15. b4 {[%clk 0:02:04]}  Nb7 {[%clk 0:01:41]} 16. Bb3 {[%clk 0:02:03]}  Qd7 {[%clk 0:01:17]} 17. h3 {[%clk 0:02:01]}  Nf6 {[%clk 0:01:16]} 18. d6+ {[%clk 0:01:57]}  Kh7 {[%clk 0:01:14]} 19. dxc7 {[%clk 0:01:54]}  Qxc7 {[%clk 0:01:13]} 20. Rac1 {[%clk 0:01:43]}  Be6 {[%clk 0:01:06]} 21. Bxe6 {[%clk 0:01:32]}  Rxe6 {[%clk 0:01:07]} 22. Rfe1 {[%clk 0:01:30]}  Rae8 {[%clk 0:01:01]} 23. Nb3 {[%clk 0:01:20]}  Qd6 {[%clk 0:00:58]} 24. Qc2 {[%clk 0:01:15]}  g6 {[%clk 0:00:53]} 25. d4 {[%clk 0:01:09]}  e4 {[%clk 0:00:52]} 26. Ne5 {[%clk 0:01:09]}  Nd5 {[%clk 0:00:44]} 27. Nc5 {[%clk 0:01:08]}  Nxc5 {[%clk 0:00:39]} 28. bxc5 {[%clk 0:01:08]}  Qc7 {[%clk 0:00:31]} 29. a4 {[%clk 0:01:08]}  Nf4 {[%clk 0:00:26]} 30. axb5 {[%clk 0:01:02]}  axb5 {[%clk 0:00:25]} 31. Qd2 {[%clk 0:01:02]}  g5 {[%clk 0:00:24]} 32. Qe3 {[%clk 0:01:00]}  Rxe5 {[%clk 0:00:22]} 33. dxe5 {[%clk 0:01:00]}  Nd3 {[%clk 0:00:22]} 34. Rb1 {[%clk 0:00:56]}  Nxe1 {[%clk 0:00:19]} 35. Qxe1 {[%clk 0:00:54]}  Qxc5 {[%clk 0:00:17]} 36. Qe2 {[%clk 0:00:54]}  Rxe5 {[%clk 0:00:17]} 37. Rc1 {[%clk 0:00:51]}  b4 {[%clk 0:00:15]} 38. c4 {[%clk 0:00:49]}  b3 {[%clk 0:00:14]} 39. Qb2 {[%clk 0:00:49]}  e3 {[%clk 0:00:11]} 40. fxe3 {[%clk 0:00:45]}  Qxe3+ {[%clk 0:00:11]} 41. Kh1 {[%clk 0:00:40]}  f4 {[%clk 0:00:11]} 42. Rc3 {[%clk 0:00:38]}  Qe1+ {[%clk 0:00:10]} 43. Kh2 {[%clk 0:00:37]}  Re3 {[%clk 0:00:09]} 44. Rxe3 {[%clk 0:00:34]}  Qxe3 {[%clk 0:00:09]} 45. c5 {[%clk 0:00:33]}  Qxc5 {[%clk 0:00:07]} 46. Qxb3 {[%clk 0:00:32]}  Qe5 {[%clk 0:00:08]} 47. Kh1 {[%clk 0:00:30]}  Qe1+ {[%clk 0:00:07]} 48. Kh2 {[%clk 0:00:30]}  Qe5 {[%clk 0:00:07]} 49. Kh1 {[%clk 0:00:30]}  Kg6 {[%clk 0:00:08]} 50. Qd3+ {[%clk 0:00:29]}  Qf5 {[%clk 0:00:07]} 51. Qd6+ {[%clk 0:00:29]}  Qf6 {[%clk 0:00:08]} 52. Qd3+ {[%clk 0:00:28]}  Kf7 {[%clk 0:00:08]} 53. Qd7+ {[%clk 0:00:29]}  Qe7 {[%clk 0:00:08]} 54. Qf5+ {[%clk 0:00:28]}  Kg7 {[%clk 0:00:07]} 55. Qd3 {[%clk 0:00:27]}  Qe5 {[%clk 0:00:07]} 56. Qd7+ {[%clk 0:00:26]}  Kf6 {[%clk 0:00:07]} 57. Qc6+ {[%clk 0:00:26]}  Qe6 {[%clk 0:00:07]} 58. Qc3+ {[%clk 0:00:25]}  Kg6 {[%clk 0:00:07]} 59. Qd3+ {[%clk 0:00:25]}  Kf7 {[%clk 0:00:07]} 60. Qf3 {[%clk 0:00:23]}  Qe3 {[%clk 0:00:06]} 61. Qb7+ {[%clk 0:00:23]}  Kf6 {[%clk 0:00:06]} 62. Qc6+ {[%clk 0:00:22]}  Qe6 {[%clk 0:00:05]} 63. Qc3+ {[%clk 0:00:22]}  Kg6 {[%clk 0:00:05]} 64. Qd3+ {[%clk 0:00:21]}  Qf5 {[%clk 0:00:05]} 65. Qd6+ {[%clk 0:00:21]}  Qf6 {[%clk 0:00:05]} 66. Qd3+ {[%clk 0:00:21]}  Kf7 {[%clk 0:00:05]} 67. Qd7+ {[%clk 0:00:21]}  Qe7 {[%clk 0:00:05]} 68. Qd5+ {[%clk 0:00:21]}  Kg7 {[%clk 0:00:05]} 69. Qd4+ {[%clk 0:00:21]}  Kf8 {[%clk 0:00:05]} 70. Qh8+ {[%clk 0:00:21]}  Kf7 {[%clk 0:00:06]} 71. Qxh6 {[%clk 0:00:20]}  Ke8 {[%clk 0:00:06]} 72. Qg6+ {[%clk 0:00:19]}  Kd7 {[%clk 0:00:06]} 73. Qf5+ {[%clk 0:00:19]}  Ke8 {[%clk 0:00:06]} 74. Qg6+ {[%clk 0:00:19]}  Kd7 {[%clk 0:00:07]} 75. Qf5+ {[%clk 0:00:20]}  Ke8 {[%clk 0:00:07]} 76. Qg6+ {[%clk 0:00:20]} 1/2-1/2


[Site "https://www.chess.com"]

[Event "Titled Tuesday Blitz June 6 Early 2023"]
[White "Sarkar, Justin"]
[Black "Zallio, Luciano de Souza"]
[WhiteFideId "2010011"]
[BlackFideId "2109700"]
[WhiteElo "2151"]
[BlackElo "2057"]
[Result "0-1"]
[Round "6"]
[TimeControl "180+2"]
[Date "2023.06.06"]
[WhiteClock "0:00:02"]
[BlackClock "0:00:47"]
[Board "172"]

1. e4 {[%clk 0:02:56]}  e6 {[%clk 0:02:59]} 2. d4 {[%clk 0:02:51]}  d5 {[%clk 0:02:59]} 3. Nc3 {[%clk 0:02:41]}  Nf6 {[%clk 0:02:57]} 4. e5 {[%clk 0:02:39]}  Nfd7 {[%clk 0:02:57]} 5. Qh5 {[%clk 0:02:37]}  c5 {[%clk 0:02:52]} 6. Nf3 {[%clk 0:02:34]}  Be7 {[%clk 0:02:43]} 7. Bd3 {[%clk 0:02:27]}  cxd4 {[%clk 0:02:36]} 8. Nxd4 {[%clk 0:02:25]}  g6 {[%clk 0:02:35]} 9. Qe2 {[%clk 0:02:14]}  Nc6 {[%clk 0:02:34]} 10. Nxc6 {[%clk 0:02:07]}  bxc6 {[%clk 0:02:34]} 11. O-O {[%clk 0:01:56]}  O-O {[%clk 0:02:28]} 12. Bh6 {[%clk 0:01:29]}  Re8 {[%clk 0:02:28]} 13. b3 {[%clk 0:01:29]}  f6 {[%clk 0:02:09]} 14. exf6 {[%clk 0:01:25]}  Nxf6 {[%clk 0:02:10]} 15. Na4 {[%clk 0:01:16]}  Qd6 {[%clk 0:02:08]} 16. c4 {[%clk 0:01:11]}  e5 {[%clk 0:02:06]} 17. f3 {[%clk 0:00:54]}  Bf5 {[%clk 0:01:41]} 18. Bxf5 {[%clk 0:00:49]}  gxf5 {[%clk 0:01:42]} 19. Rfe1 {[%clk 0:00:43]}  e4 {[%clk 0:01:37]} 20. fxe4 {[%clk 0:00:32]}  fxe4 {[%clk 0:01:30]} 21. g4 {[%clk 0:00:28]}  Kh8 {[%clk 0:01:18]} 22. Kh1 {[%clk 0:00:15]}  Nxg4 {[%clk 0:01:12]} 23. Qxg4 {[%clk 0:00:11]}  Qxh6 {[%clk 0:01:12]} 24. cxd5 {[%clk 0:00:09]}  cxd5 {[%clk 0:01:11]} 25. Rad1 {[%clk 0:00:07]}  Bd6 {[%clk 0:01:06]} 26. Re2 {[%clk 0:00:05]}  Rg8 {[%clk 0:01:00]} 27. Qf5 {[%clk 0:00:04]}  Rg5 {[%clk 0:00:56]} 28. Qf7 {[%clk 0:00:03]}  Rag8 {[%clk 0:00:54]} 29. Nc3 {[%clk 0:00:02]}  Rh5 {[%clk 0:00:47]} 0-1


[Site "https://www.chess.com"]

[Event "Titled Tuesday Blitz June 6 Early 2023"]
[White "Rodriguez Polo, Mateo"]
[Black "Sanchez, Robert"]
[WhiteFideId "24509396"]
[BlackFideId "2034360"]
[WhiteElo "2117"]
[BlackElo "1794"]
[Result "1-0"]
[Round "6"]
[TimeControl "180+2"]
[Date "2023.06.06"]
[WhiteClock "0:00:04"]
[BlackClock "0:00:12"]
[Board "174"]

1. d4 {[%clk 0:02:55]}  Nf6 {[%clk 0:02:59]} 2. c4 {[%clk 0:02:48]}  g6 {[%clk 0:03:00]} 3. b3 {[%clk 0:02:44]}  Bg7 {[%clk 0:03:00]} 4. Bb2 {[%clk 0:02:44]}  O-O {[%clk 0:03:00]} 5. Nf3 {[%clk 0:02:44]}  d5 {[%clk 0:03:01]} 6. g3 {[%clk 0:02:39]}  c6 {[%clk 0:02:59]} 7. Bg2 {[%clk 0:02:38]}  Bf5 {[%clk 0:02:58]} 8. O-O {[%clk 0:02:38]}  a5 {[%clk 0:02:58]} 9. Nc3 {[%clk 0:02:37]}  Na6 {[%clk 0:02:57]} 10. a3 {[%clk 0:02:35]}  h6 {[%clk 0:02:51]} 11. Rc1 {[%clk 0:02:36]}  Re8 {[%clk 0:02:50]} 12. Ne5 {[%clk 0:02:30]}  Rc8 {[%clk 0:02:37]} 13. h3 {[%clk 0:02:22]}  h5 {[%clk 0:02:36]} 14. Kh2 {[%clk 0:02:20]}  Be6 {[%clk 0:02:26]} 15. Na4 {[%clk 0:02:05]}  Nd7 {[%clk 0:02:19]} 16. f4 {[%clk 0:02:00]}  Nxe5 {[%clk 0:02:18]} 17. dxe5 {[%clk 0:01:57]}  dxc4 {[%clk 0:02:15]} 18. bxc4 {[%clk 0:01:56]}  Qc7 {[%clk 0:02:12]} 19. c5 {[%clk 0:01:50]}  Ra8 {[%clk 0:01:57]} 20. Qc2 {[%clk 0:01:47]}  Red8 {[%clk 0:01:54]} 21. Nb6 {[%clk 0:01:44]}  Ra7 {[%clk 0:01:44]} 22. e4 {[%clk 0:01:42]}  f6 {[%clk 0:01:21]} 23. f5 {[%clk 0:01:41]}  gxf5 {[%clk 0:01:20]} 24. exf5 {[%clk 0:01:40]}  Bf7 {[%clk 0:01:18]} 25. e6 {[%clk 0:01:25]}  Be8 {[%clk 0:01:18]} 26. Rcd1 {[%clk 0:01:26]}  Bh6 {[%clk 0:01:09]} 27. h4 {[%clk 0:01:24]}  Be3 {[%clk 0:00:57]} 28. Rxd8 {[%clk 0:01:15]}  Qxd8 {[%clk 0:00:58]} 29. Rd1 {[%clk 0:01:15]}  Qc7 {[%clk 0:00:58]} 30. Nd7 {[%clk 0:01:09]}  Ra8 {[%clk 0:00:53]} 31. Bc1 {[%clk 0:00:53]}  Bxc1 {[%clk 0:00:49]} 32. Qxc1 {[%clk 0:00:54]}  Rd8 {[%clk 0:00:46]} 33. Qh6 {[%clk 0:00:36]}  Nxc5 {[%clk 0:00:30]} 34. Qf8+ {[%clk 0:00:14]}  Kh7 {[%clk 0:00:29]} 35. Qxe7+ {[%clk 0:00:15]}  Kh6 {[%clk 0:00:26]} 36. Qxc5 {[%clk 0:00:11]}  Bxd7 {[%clk 0:00:26]} 37. exd7 {[%clk 0:00:12]}  Rxd7 {[%clk 0:00:27]} 38. Qe3+ {[%clk 0:00:10]}  Kg7 {[%clk 0:00:26]} 39. Rxd7+ {[%clk 0:00:11]}  Qxd7 {[%clk 0:00:27]} 40. Qf4 {[%clk 0:00:11]}  Qe7 {[%clk 0:00:24]} 41. g4 {[%clk 0:00:10]}  Qxa3 {[%clk 0:00:21]} 42. g5 {[%clk 0:00:09]}  Qb4 {[%clk 0:00:20]} 43. Qc7+ {[%clk 0:00:04]}  Kf8 {[%clk 0:00:18]} 44. Qd8+ {[%clk 0:00:04]}  Kf7 {[%clk 0:00:16]} 45. Qd7+ {[%clk 0:00:04]}  Kg8 {[%clk 0:00:15]} 46. Qd8+ {[%clk 0:00:04]}  Kh7 {[%clk 0:00:15]} 47. g6+ {[%clk 0:00:02]}  Kg7 {[%clk 0:00:14]} 48. Qd7+ {[%clk 0:00:02]}  Kf8 {[%clk 0:00:15]} 49. Qd8+ {[%clk 0:00:03]}  Kg7 {[%clk 0:00:14]} 50. Qd7+ {[%clk 0:00:03]}  Kg8 {[%clk 0:00:13]} 51. Qf7+ {[%clk 0:00:03]}  Kh8 {[%clk 0:00:12]} 52. Qh7# {[%clk 0:00:04]} 1-0


[Site "https://www.chess.com"]